[Event "*** Titled Tuesday Blitz"]
[Site "Chess.com"]
[Date "2019.11.05"]
[Round "1"]
[White "yjjga"]
[Black "catalin009"]
[Result "0-1"]
[WhiteElo "2060"]
[BlackElo "2548"]
[TimeControl "180+2"]
[EndTime "13:09:55 PST"]
[Termination "catalin009 won by checkmate"]

1. d4 {[%clk 0:02:48]} 1... Nf6 {[%clk 0:03:00.1]} 2. c4 {[%clk 0:02:47]} 2...
e6 {[%clk 0:03:00.6]} 3. Nf3 {[%clk 0:02:48.1]} 3... b6 {[%clk 0:03:01]} 4. g3
{[%clk 0:02:47.8]} 4... Ba6 {[%clk 0:03:01]} 5. Nbd2 {[%clk 0:02:40.2]} 5... d5
{[%clk 0:02:57.7]} 6. cxd5 {[%clk 0:02:35]} 6... exd5 {[%clk 0:02:54.1]} 7. Bg2
{[%clk 0:02:36.2]} 7... Nbd7 {[%clk 0:02:53.3]} 8. O-O {[%clk 0:02:37.4]} 8...
Bd6 {[%clk 0:02:53.5]} 9. Re1 {[%clk 0:02:27.1]} 9... O-O {[%clk 0:02:52.8]} 10.
e4 {[%clk 0:02:26.7]} 10... dxe4 {[%clk 0:02:54.7]} 11. Nxe4 {[%clk 0:02:27.1]}
11... Nxe4 {[%clk 0:02:56.3]} 12. Rxe4 {[%clk 0:02:27.4]} 12... Bb7 {[%clk
0:02:56.8]} 13. Re1 {[%clk 0:02:25.3]} 13... Re8 {[%clk 0:02:52.1]} 14. Bg5
{[%clk 0:02:16.8]} 14... Qc8 {[%clk 0:02:03.7]} 15. Qd3 {[%clk 0:01:24.9]} 15...
h6 {[%clk 0:01:59.1]} 16. Bd2 {[%clk 0:01:22.8]} 16... Nf6 {[%clk 0:01:58.1]}
17. Rxe8+ {[%clk 0:00:48]} 17... Qxe8 {[%clk 0:01:56.2]} 18. Re1 {[%clk
0:00:49.9]} 18... Qa4 {[%clk 0:01:52.6]} 19. a3 {[%clk 0:00:40]} 19... Re8
{[%clk 0:01:49.3]} 20. Ne5 {[%clk 0:00:33.6]} 20... Bxg2 {[%clk 0:01:49.2]} 21.
Kxg2 {[%clk 0:00:35.5]} 21... c5 {[%clk 0:01:26.7]} 22. Qc4 {[%clk 0:00:18.2]}
22... Qxc4 {[%clk 0:01:19.4]} 23. Nxc4 {[%clk 0:00:20.1]} 23... Rxe1 {[%clk
0:01:12.2]} 24. Bxe1 {[%clk 0:00:22]} 24... Bf8 {[%clk 0:01:07.2]} 25. dxc5
{[%clk 0:00:23.3]} 25... Bxc5 {[%clk 0:01:08.5]} 26. Ne5 {[%clk 0:00:24.5]}
26... Nd5 {[%clk 0:00:57.5]} 27. Nd3 {[%clk 0:00:26]} 27... Bd6 {[%clk
0:00:57.7]} 28. Bd2 {[%clk 0:00:25.4]} 28... f5 {[%clk 0:00:53.4]} 29. f4 {[%clk
0:00:26.7]} 29... Kf7 {[%clk 0:00:54.3]} 30. Kf3 {[%clk 0:00:28.1]} 30... Ke6
{[%clk 0:00:54.8]} 31. Be3 {[%clk 0:00:24.8]} 31... Nxe3 {[%clk 0:00:41.3]} 32.
Kxe3 {[%clk 0:00:26.7]} 32... Kd5 {[%clk 0:00:43]} 33. Kd2 {[%clk 0:00:13.9]}
33... Ke4 {[%clk 0:00:33.8]} 34. Ke2 {[%clk 0:00:14.4]} 34... b5 {[%clk
0:00:20.3]} 35. Ne1 {[%clk 0:00:14]} 35... a5 {[%clk 0:00:18.6]} 36. Nf3 {[%clk
0:00:15]} 36... a4 {[%clk 0:00:19.5]} 37. Nd2+ {[%clk 0:00:15.1]} 37... Kd4
{[%clk 0:00:20]} 38. Nb1 {[%clk 0:00:14.6]} 38... Kc4 {[%clk 0:00:19.2]} 39. Nc3
{[%clk 0:00:16.5]} 39... Bxa3 {[%clk 0:00:18.2]} 40. Nxa4 {[%clk 0:00:06.7]}
40... bxa4 {[%clk 0:00:17.9]} 41. bxa3 {[%clk 0:00:08.3]} 41... Kb3 {[%clk
0:00:18.8]} 42. Kd3 {[%clk 0:00:09.9]} 42... Kxa3 {[%clk 0:00:20.3]} 43. Kc3
{[%clk 0:00:11.3]} 43... Ka2 {[%clk 0:00:19.8]} 44. Kc2 {[%clk 0:00:12]} 44...
a3 {[%clk 0:00:19.1]} 45. h3 {[%clk 0:00:12.7]} 45... Ka1 {[%clk 0:00:13.6]} 46.
Kc1 {[%clk 0:00:12.8]} 46... h5 {[%clk 0:00:11.8]} 47. Kc2 {[%clk 0:00:11.3]}
47... Ka2 {[%clk 0:00:13]} 48. h4 {[%clk 0:00:04.7]} 48... g6 {[%clk 0:00:12.7]}
49. Kc1 {[%clk 0:00:04.7]} 49... Kb3 {[%clk 0:00:14.2]} 50. Kb1 {[%clk
0:00:05.5]} 50... a2+ {[%clk 0:00:12.3]} 51. Ka1 {[%clk 0:00:06.6]} 51... Ka3
{[%clk 0:00:14]} 52. g4 {[%clk 0:00:06.6]} 52... hxg4 {[%clk 0:00:15.9]} 53. h5
{[%clk 0:00:07.8]} 53... g3 {[%clk 0:00:17.5]} 54. hxg6 {[%clk 0:00:07]} 54...
g2 {[%clk 0:00:19.1]} 55. g7 {[%clk 0:00:08.6]} 55... g1=Q# {[%clk 0:00:20.5]}
0-1

[Event "*** Titled Tuesday Blitz"]
[Site "Chess.com"]
[Date "2019.11.05"]
[Round "1"]
[White "sergiochess83"]
[Black "KL31"]
[Result "1/2-1/2"]
[WhiteElo "2937"]
[BlackElo "2507"]
[TimeControl "180+2"]
[EndTime "13:09:56 PST"]
[Termination "Game drawn by repetition"]

1. e4 {[%clk 0:03:01.3]} 1... e6 {[%clk 0:03:01.1]} 2. d4 {[%clk 0:03:01.8]}
2... d5 {[%clk 0:03:02.5]} 3. Nd2 {[%clk 0:03:03.4]} 3... c5 {[%clk 0:03:03.1]}
4. Ngf3 {[%clk 0:03:01.9]} 4... Nc6 {[%clk 0:03:01.2]} 5. exd5 {[%clk
0:03:02.7]} 5... exd5 {[%clk 0:02:59.4]} 6. Bb5 {[%clk 0:03:03.5]} 6... Nf6
{[%clk 0:02:55.3]} 7. O-O {[%clk 0:03:03.6]} 7... Be7 {[%clk 0:02:54.9]} 8. dxc5
{[%clk 0:03:04.2]} 8... O-O {[%clk 0:02:56.3]} 9. Nb3 {[%clk 0:03:03.8]} 9...
Bg4 {[%clk 0:02:53.1]} 10. h3 {[%clk 0:03:01.5]} 10... Bh5 {[%clk 0:02:53.4]}
11. Be3 {[%clk 0:03:01.8]} 11... Rc8 {[%clk 0:02:39.4]} 12. c3 {[%clk 0:02:57]}
12... Ne4 {[%clk 0:02:30.8]} 13. Be2 {[%clk 0:02:55.1]} 13... Re8 {[%clk
0:02:04.8]} 14. Re1 {[%clk 0:02:49.9]} 14... Bf8 {[%clk 0:01:59.2]} 15. Nfd2
{[%clk 0:02:44.5]} 15... Bxe2 {[%clk 0:01:56]} 16. Rxe2 {[%clk 0:02:45.3]} 16...
Ne5 {[%clk 0:01:51.6]} 17. Nxe4 {[%clk 0:01:51.2]} 17... dxe4 {[%clk 0:01:52.6]}
18. Qxd8 {[%clk 0:01:47.8]} 18... Rexd8 {[%clk 0:01:54]} 19. Bd4 {[%clk
0:01:36.2]} 19... Nd3 {[%clk 0:01:52.1]} 20. Rxe4 {[%clk 0:01:32.6]} 20... Nxb2
{[%clk 0:01:53]} 21. Na5 {[%clk 0:01:30.3]} 21... b6 {[%clk 0:01:32.9]} 22. cxb6
{[%clk 0:01:30.1]} 22... axb6 {[%clk 0:01:34.8]} 23. Bxb6 {[%clk 0:01:31]} 23...
Rd5 {[%clk 0:01:10.2]} 24. c4 {[%clk 0:01:21.4]} 24... Rd2 {[%clk 0:01:02.8]}
25. Nb3 {[%clk 0:01:15.9]} 25... Rc2 {[%clk 0:01:01.8]} 26. c5 {[%clk
0:01:16.4]} 26... Nd3 {[%clk 0:01:00.2]} 27. Rd4 {[%clk 0:01:01]} 27... Nxc5
{[%clk 0:00:51.2]} 28. Bxc5 {[%clk 0:00:58.5]} 28... Bxc5 {[%clk 0:00:53.1]} 29.
Nxc5 {[%clk 0:00:58.1]} 29... R2xc5 {[%clk 0:00:55]} 30. a4 {[%clk 0:00:59.5]}
30... Ra5 {[%clk 0:00:54.2]} 31. g4 {[%clk 0:00:59.2]} 31... f6 {[%clk 0:00:45]}
32. Rb4 {[%clk 0:00:56.7]} 32... Rac5 {[%clk 0:00:42.4]} 33. a5 {[%clk
0:00:54.6]} 33... Rc1+ {[%clk 0:00:43.2]} 34. Rxc1 {[%clk 0:00:55.1]} 34...
Rxc1+ {[%clk 0:00:45.1]} 35. Kg2 {[%clk 0:00:56.9]} 35... Ra1 {[%clk 0:00:46.7]}
36. Rb5 {[%clk 0:00:56.8]} 36... Kf7 {[%clk 0:00:46.9]} 37. h4 {[%clk
0:00:58.2]} 37... Ra4 {[%clk 0:00:41]} 38. f3 {[%clk 0:00:58.7]} 38... Ra2+
{[%clk 0:00:40.3]} 39. Kg3 {[%clk 0:00:59.7]} 39... h6 {[%clk 0:00:38.1]} 40. h5
{[%clk 0:01:00.8]} 40... Ke6 {[%clk 0:00:36.8]} 41. Rb6+ {[%clk 0:01:00.3]}
41... Ke7 {[%clk 0:00:37.3]} 42. Rb5 {[%clk 0:01:02.2]} 42... Ke6 {[%clk
0:00:38.5]} 43. Rf5 {[%clk 0:01:02.1]} 43... Kd6 {[%clk 0:00:33.4]} 44. Kf4
{[%clk 0:01:03]} 44... Ra3 {[%clk 0:00:28.3]} 45. Ke4 {[%clk 0:01:00.4]} 45...
Kc6 {[%clk 0:00:27.8]} 46. Kd4 {[%clk 0:00:58.2]} 46... Ra4+ {[%clk 0:00:29.1]}
47. Kc3 {[%clk 0:00:58.8]} 47... Kb7 {[%clk 0:00:25.8]} 48. Kb3 {[%clk
0:00:59.4]} 48... Rd4 {[%clk 0:00:27.2]} 49. Kc3 {[%clk 0:00:59.2]} 49... Ra4
{[%clk 0:00:27.6]} 50. Rc5 {[%clk 0:00:59.2]} 50... Ra3+ {[%clk 0:00:28.6]} 51.
Kd4 {[%clk 0:00:58.9]} 51... Rxf3 {[%clk 0:00:30.5]} 52. Ke4 {[%clk 0:01:00.3]}
52... Ra3 {[%clk 0:00:23.5]} 53. Kf5 {[%clk 0:00:57.4]} 53... Ra4 {[%clk
0:00:23]} 54. Rd5 {[%clk 0:00:47.9]} 54... Kc6 {[%clk 0:00:21.5]} 55. Rd8 {[%clk
0:00:25.2]} 55... Rxa5+ {[%clk 0:00:22.7]} 56. Kf4 {[%clk 0:00:24.8]} 56... Rg5
{[%clk 0:00:23.5]} 57. Rd1 {[%clk 0:00:23.6]} 57... Kc7 {[%clk 0:00:24.3]} 58.
Rd2 {[%clk 0:00:24]} 58... Kc6 {[%clk 0:00:19.3]} 59. Rd3 {[%clk 0:00:24.7]}
59... Kc5 {[%clk 0:00:20.1]} 60. Rd2 {[%clk 0:00:24.9]} 60... Kc6 {[%clk
0:00:21.3]} 61. Rd3 {[%clk 0:00:25.8]} 61... Re5 {[%clk 0:00:21.5]} 62. Rd2
{[%clk 0:00:26.1]} 62... Kc7 {[%clk 0:00:21.7]} 63. Rd3 {[%clk 0:00:26.5]} 63...
Rg5 {[%clk 0:00:22.3]} 64. Rd2 {[%clk 0:00:27.2]} 64... Kc6 {[%clk 0:00:19.6]}
1/2-1/2

[Event "*** Titled Tuesday Blitz"]
[Site "Chess.com"]
[Date "2019.11.05"]
[Round "1"]
[White "Kostya_Nikologorskiy"]
[Black "gorgeous1083"]
[Result "0-1"]
[WhiteElo "2512"]
[BlackElo "1977"]
[TimeControl "180+2"]
[EndTime "13:10:24 PST"]
[Termination "gorgeous1083 won by resignation"]

1. d4 {[%clk 0:02:58]} 1... Nf6 {[%clk 0:02:59.8]} 2. c3 {[%clk 0:02:59]} 2...
e6 {[%clk 0:02:59.9]} 3. g3 {[%clk 0:02:59.3]} 3... d5 {[%clk 0:03:00]} 4. Bg2
{[%clk 0:03:00.6]} 4... Be7 {[%clk 0:02:58.7]} 5. Nf3 {[%clk 0:03:01.3]} 5... b6
{[%clk 0:02:56.7]} 6. O-O {[%clk 0:03:02.2]} 6... O-O {[%clk 0:02:57.3]} 7. a4
{[%clk 0:03:01.9]} 7... a5 {[%clk 0:02:53.9]} 8. Re1 {[%clk 0:03:00]} 8... Bb7
{[%clk 0:02:49.3]} 9. Nbd2 {[%clk 0:02:56.3]} 9... Nbd7 {[%clk 0:02:41.2]} 10.
h3 {[%clk 0:02:42.7]} 10... Rc8 {[%clk 0:02:40.1]} 11. Nf1 {[%clk 0:02:38.9]}
11... c5 {[%clk 0:02:36.5]} 12. Bf4 {[%clk 0:02:38.2]} 12... Ne4 {[%clk
0:02:26.3]} 13. N3d2 {[%clk 0:02:25.9]} 13... f5 {[%clk 0:02:13.1]} 14. f3
{[%clk 0:02:15.4]} 14... Nxd2 {[%clk 0:01:35]} 15. Qxd2 {[%clk 0:02:11.2]} 15...
cxd4 {[%clk 0:01:19.9]} 16. cxd4 {[%clk 0:01:52.7]} 16... Bb4 {[%clk 0:01:14.3]}
17. Qe3 {[%clk 0:01:54.1]} 17... Bxe1 {[%clk 0:01:06.8]} 18. Qxe6+ {[%clk
0:01:54.5]} 18... Kh8 {[%clk 0:01:08.3]} 19. Rxe1 {[%clk 0:01:56.3]} 19... Rc2
{[%clk 0:00:56.8]} 20. Rc1 {[%clk 0:01:11.1]} 20... Rxc1 {[%clk 0:00:51.2]} 21.
Bxc1 {[%clk 0:01:13]} 21... Re8 {[%clk 0:00:47.4]} 22. Qxf5 {[%clk 0:01:12]}
22... Rxe2 {[%clk 0:00:47.8]} 23. Bg5 {[%clk 0:01:10.1]} 23... Qe8 {[%clk
0:00:46.2]} 24. Bd2 {[%clk 0:00:59.1]} 24... Ba6 {[%clk 0:00:41.1]} 25. Be3
{[%clk 0:00:45.5]} 25... Rxe3 {[%clk 0:00:27.5]} 26. Nxe3 {[%clk 0:00:43.6]}
26... Qxe3+ {[%clk 0:00:29.4]} 27. Kh2 {[%clk 0:00:45]} 27... Nf6 {[%clk
0:00:21.4]} 28. g4 {[%clk 0:00:40.5]} 28... Qf2 {[%clk 0:00:13.1]} 29. Qe5
{[%clk 0:00:38.1]} 29... h6 {[%clk 0:00:12]} 30. Qb8+ {[%clk 0:00:24.6]} 30...
Kh7 {[%clk 0:00:12.4]} 31. Qg3 {[%clk 0:00:26]} 31... Qxg3+ {[%clk 0:00:12.5]}
32. Kxg3 {[%clk 0:00:27.9]} 32... g5 {[%clk 0:00:11.3]} 33. h4 {[%clk
0:00:27.7]} 33... Kg6 {[%clk 0:00:11.5]} 34. f4 {[%clk 0:00:26.6]} 34... gxh4+
{[%clk 0:00:12]} 35. Kxh4 {[%clk 0:00:27.2]} 35... Bc8 {[%clk 0:00:13.4]} 36.
f5+ {[%clk 0:00:27.4]} 36... Kg7 {[%clk 0:00:13.6]} 37. Kg3 {[%clk 0:00:28.9]}
37... Bd7 {[%clk 0:00:14.8]} 38. Kf4 {[%clk 0:00:30.2]} 38... Bxa4 {[%clk
0:00:15.5]} 39. Bf3 {[%clk 0:00:30.8]} 39... Bb3 {[%clk 0:00:15.4]} 40. Be2
{[%clk 0:00:31.4]} 40... a4 {[%clk 0:00:14.3]} 41. Ke5 {[%clk 0:00:31.7]} 41...
Bc4 {[%clk 0:00:14.5]} 42. Bf3 {[%clk 0:00:32.4]} 42... b5 {[%clk 0:00:14.6]}
43. Bd1 {[%clk 0:00:33.6]} 43... b4 {[%clk 0:00:06.8]} 44. Bxa4 {[%clk
0:00:33.4]} 44... Nxg4+ {[%clk 0:00:07.7]} 45. Kf4 {[%clk 0:00:34.7]} 45... Nf6
{[%clk 0:00:08.7]} 46. Bd1 {[%clk 0:00:36.3]} 46... Ne4 {[%clk 0:00:09.6]} 47.
Ke5 {[%clk 0:00:37]} 47... Nd2 {[%clk 0:00:10.1]} 48. f6+ {[%clk 0:00:36.4]}
48... Kf7 {[%clk 0:00:10.8]} 49. Bh5+ {[%clk 0:00:36.8]} 49... Kf8 {[%clk
0:00:12.1]} 50. Bd1 {[%clk 0:00:36.7]} 50... Nf1 {[%clk 0:00:10]} 51. Bf3 {[%clk
0:00:29.2]} 51... Ng3 {[%clk 0:00:07]} 52. Kf4 {[%clk 0:00:24.7]} 52... Nf1
{[%clk 0:00:07.4]} 53. Ke5 {[%clk 0:00:20]} 53... Ne3 {[%clk 0:00:08.3]} 54. Kf4
{[%clk 0:00:20]} 54... Nc2 {[%clk 0:00:07.8]} 55. Bd1 {[%clk 0:00:19.5]} 55...
b3 {[%clk 0:00:06.5]} 56. Ke5 {[%clk 0:00:19.3]} 56... Nb4 {[%clk 0:00:07.4]}
57. Kd6 {[%clk 0:00:13.5]} 57... Nd3 {[%clk 0:00:08]} 58. Bxb3 {[%clk
0:00:10.2]} 58... Bxb3 {[%clk 0:00:08.4]} 59. Ke6 {[%clk 0:00:12.1]} 59... Nxb2
{[%clk 0:00:08.2]} 60. Kf5 {[%clk 0:00:13.6]} 60... Na4 {[%clk 0:00:08]} 61. Kg6
{[%clk 0:00:14.6]} 61... Nc3 {[%clk 0:00:08]} 62. Kxh6 {[%clk 0:00:15.9]} 62...
Nb5 {[%clk 0:00:09.2]} 63. Kg5 {[%clk 0:00:17.5]} 63... Nxd4 {[%clk 0:00:10.5]}
64. Kf4 {[%clk 0:00:19.4]} 64... Nc6 {[%clk 0:00:11.5]} 65. Kf5 {[%clk
0:00:20.6]} 65... Kf7 {[%clk 0:00:12.8]} 0-1

[Event "*** Titled Tuesday Blitz"]
[Site "Chess.com"]
[Date "2019.11.05"]
[Round "1"]
[White "NikolaMa2000"]
[Black "cool4chess"]
[Result "0-1"]
[WhiteElo "1999"]
[BlackElo "2540"]
[TimeControl "180+2"]
[EndTime "13:10:42 PST"]
[Termination "cool4chess won by resignation"]

1. d4 {[%clk 0:03:01.6]} 1... d5 {[%clk 0:03:00.8]} 2. Nf3 {[%clk 0:03:00.7]}
2... Nf6 {[%clk 0:03:00.8]} 3. c4 {[%clk 0:03:00.8]} 3... c6 {[%clk 0:03:02]} 4.
Qb3 {[%clk 0:02:59.3]} 4... e6 {[%clk 0:02:58.5]} 5. g3 {[%clk 0:02:57.5]} 5...
Nbd7 {[%clk 0:02:58.9]} 6. Bg2 {[%clk 0:02:58.6]} 6... Bd6 {[%clk 0:02:57.3]} 7.
O-O {[%clk 0:02:59]} 7... O-O {[%clk 0:02:58.7]} 8. Nc3 {[%clk 0:02:46]} 8... h6
{[%clk 0:02:55.3]} 9. Bf4 {[%clk 0:02:26.7]} 9... Bxf4 {[%clk 0:02:55.7]} 10.
gxf4 {[%clk 0:02:27.6]} 10... b6 {[%clk 0:02:37.2]} 11. e3 {[%clk 0:02:26.1]}
11... Ba6 {[%clk 0:02:35.3]} 12. Nd2 {[%clk 0:02:24.3]} 12... Rc8 {[%clk
0:02:31.3]} 13. Rfd1 {[%clk 0:02:11.8]} 13... Qe7 {[%clk 0:02:18.4]} 14. Rac1
{[%clk 0:02:10.6]} 14... Rfd8 {[%clk 0:02:06.4]} 15. Na4 {[%clk 0:01:26.1]}
15... dxc4 {[%clk 0:02:02.7]} 16. Qc2 {[%clk 0:01:20.7]} 16... b5 {[%clk
0:02:03.5]} 17. Nc3 {[%clk 0:01:19]} 17... c5 {[%clk 0:02:02.2]} 18. Nde4 {[%clk
0:00:46.8]} 18... cxd4 {[%clk 0:01:53.1]} 19. Rxd4 {[%clk 0:00:44.6]} 19... Nxe4
{[%clk 0:01:52.8]} 20. Nxe4 {[%clk 0:00:43.5]} 20... Nb6 {[%clk 0:01:47.8]} 21.
Rcd1 {[%clk 0:00:40.4]} 21... Nd5 {[%clk 0:01:47.8]} 22. Ng3 {[%clk 0:00:30.7]}
22... Nb4 {[%clk 0:01:47.4]} 23. Qb1 {[%clk 0:00:28]} 23... Nd3 {[%clk
0:01:47.3]} 24. Rxd8+ {[%clk 0:00:20.9]} 24... Rxd8 {[%clk 0:01:49.2]} 25. Bf1
{[%clk 0:00:19.5]} 25... b4 {[%clk 0:01:46.6]} 26. b3 {[%clk 0:00:16.4]} 26...
cxb3 {[%clk 0:01:10.9]} 27. Bxd3 {[%clk 0:00:16.6]} 27... bxa2 {[%clk
0:01:10.4]} 28. Qxa2 {[%clk 0:00:13.1]} 28... Rxd3 {[%clk 0:01:06.8]} 29. Rb1
{[%clk 0:00:10.2]} 29... Bb5 {[%clk 0:01:05.6]} 30. Qc2 {[%clk 0:00:08.9]} 30...
Rc3 {[%clk 0:01:04.7]} 31. Qd2 {[%clk 0:00:08.7]} 31... a5 {[%clk 0:01:02.1]}
32. Ne4 {[%clk 0:00:09.3]} 32... Rd3 {[%clk 0:00:55.4]} 33. Qc2 {[%clk 0:00:10]}
33... Rd8 {[%clk 0:00:56.1]} 34. Qc5 {[%clk 0:00:07.7]} 34... Qxc5 {[%clk
0:00:54.2]} 35. Nxc5 {[%clk 0:00:09.6]} 35... Rd2 {[%clk 0:00:46.5]} 36. Nb7
{[%clk 0:00:10.3]} 36... Ra2 {[%clk 0:00:46.2]} 37. Rc1 {[%clk 0:00:09.8]} 37...
b3 {[%clk 0:00:45.2]} 38. Rc5 {[%clk 0:00:10.3]} 38... b2 {[%clk 0:00:45.6]} 39.
Rxb5 {[%clk 0:00:11]} 39... Ra1+ {[%clk 0:00:43.3]} 40. Kg2 {[%clk 0:00:11.8]}
40... b1=Q {[%clk 0:00:44.8]} 41. Rxb1 {[%clk 0:00:12.8]} 41... Rxb1 {[%clk
0:00:46.7]} 42. Nxa5 {[%clk 0:00:14.4]} 42... Rc1 {[%clk 0:00:44.7]} 43. Nb3
{[%clk 0:00:14.6]} 43... Rc3 {[%clk 0:00:44.8]} 44. Nd4 {[%clk 0:00:15.6]} 44...
Kf8 {[%clk 0:00:45.1]} 45. Nf3 {[%clk 0:00:16.7]} 45... Ke7 {[%clk 0:00:45.2]}
46. Ne5 {[%clk 0:00:18]} 46... Ra3 {[%clk 0:00:44.4]} 47. Nc4 {[%clk 0:00:18.5]}
47... Ra2 {[%clk 0:00:45.3]} 48. Ne5 {[%clk 0:00:19.3]} 48... Kf6 {[%clk
0:00:45.2]} 49. Kf3 {[%clk 0:00:20.4]} 49... g5 {[%clk 0:00:43.6]} 50. Ng4+
{[%clk 0:00:21.3]} 50... Kg6 {[%clk 0:00:43.5]} 51. Ne5+ {[%clk 0:00:22.3]}
51... Kg7 {[%clk 0:00:44.9]} 52. fxg5 {[%clk 0:00:16.2]} 52... hxg5 {[%clk
0:00:46.8]} 53. Ng4 {[%clk 0:00:17.1]} 53... f5 {[%clk 0:00:47.2]} 54. Ne5
{[%clk 0:00:16.5]} 54... Rd2 {[%clk 0:00:48.2]} 55. Kg2 {[%clk 0:00:15.3]} 55...
Kf6 {[%clk 0:00:48]} 56. Nc4 {[%clk 0:00:14.4]} 56... Rc2 {[%clk 0:00:48]} 57.
Nd6 {[%clk 0:00:13.7]} 57... Ke7 {[%clk 0:00:46.7]} 58. Nb5 {[%clk 0:00:14.4]}
58... e5 {[%clk 0:00:45.7]} 59. Kg3 {[%clk 0:00:11.4]} 59... Ke6 {[%clk
0:00:41.9]} 60. Kg2 {[%clk 0:00:11.5]} 60... Kd5 {[%clk 0:00:41.4]} 61. Kg3
{[%clk 0:00:09.4]} 61... f4+ {[%clk 0:00:38.9]} 62. exf4 {[%clk 0:00:09.4]}
62... gxf4+ {[%clk 0:00:40.8]} 63. Kg2 {[%clk 0:00:09.6]} 63... e4 {[%clk
0:00:36.4]} 64. Kf1 {[%clk 0:00:07.3]} 64... e3 {[%clk 0:00:35.8]} 65. fxe3
{[%clk 0:00:07.3]} 65... fxe3 {[%clk 0:00:37.7]} 66. Ke1 {[%clk 0:00:06.9]}
66... Ke4 {[%clk 0:00:35.5]} 67. Nd6+ {[%clk 0:00:07.4]} 67... Kd3 {[%clk
0:00:36.2]} 68. Kf1 {[%clk 0:00:06.9]} 68... e2+ {[%clk 0:00:35.5]} 69. Ke1
{[%clk 0:00:07]} 69... Rc1+ {[%clk 0:00:36.5]} 70. Kf2 {[%clk 0:00:08]} 70...
e1=Q+ {[%clk 0:00:38.4]} 0-1